Workbook

Sheet Zał
U3: Załącznik
U4: do uchwały Nr 433/2025
U5: Zarządu Dzielnicy Bielany
U6: Miasta Stołecznego Warszawy
U7: z dnia 7.05.2025 r.
A10: INFORMACJA O ZMIANIE STATUSU WIELOLETNICH PRZEDSIĘWZIĘĆ MAJĄTKOWYCH ORAZ UE
Y13: w zł
A14: Stanowisko finansowe (KOD) 1/ | B14: Obszar funkcjonalny dla budżetu 2/ | C14: Kod zadania 3/ | D14: Nazwa / cel przedsięwzięcia | E14: Pozycja finansowa | H14: Rok rozpocz. | I14: Rok zakończ. | J14: Obszar funkcjonalny przedsięwzięć wiloletnich | K14: Łączne nakłady finansowe | L14: Poniesione nakłady finansowe | O14: Łączny limit wydatków ∑ (n; n+…)
E15: Dział | F15: Rozdział | G15: Paragraf | L15: do 2023 roku | M15: w 2024 roku | N15: Łącznie do 31.12.2024 roku | P15: na 2025 rok | Q15: na 2026 rok | R15: na …... rok (n+4) | S15: na ..... rok (n+5) | T15: na ..... rok (n+6) | U15: na ..... rok (n+7) | V15: na ..... rok (n+8) | W15: na ..... rok (n+9) | X15: na ..... rok (n+10) | Y15: na ..... rok (n+...)
A16: 1 | B16: =A16+1 -> 2 | C16: =B16+1 -> 3 | D16: 4 | E16: 5 | F16: 6 | G16: 7 | H16: 8 | I16: 9 | J16: 10 | K16: 11 | L16: 12 | M16: 13 | N16: 14 | O16: 15 | P16: =O16+1 -> 16 | Q16: 17 | R16: 18 | S16: 19 | T16: 20 | U16: 21 | V16: 22 | W16: 23 | X16: 24 | Y16: 25
A17: PRZED ZMIANĄ
A18: U.03.000 | B18: GMMW | C18: C/BIE/V/P1/141 | D18: Modernizacja budynku Szkoły Podstawowej nr 53 przy ul.Rudzkiej 6 | E18: 801 | F18: 80101 | G18: 6050 | H18: 2023 | I18: 2025 | J18: WPF, w tym | K18: =SUM(N18:O18) -> 5700000 | L18: =SUM(L19:L20) -> 29889 | M18: =SUM(M19:M20) -> 3365945 | N18: =SUM(L18:M18) -> 3395834 | O18: =SUM(P18:X18) -> 2304166 | P18: =SUM(P19:P20) -> 2304166 | Q18: =SUM(Q19:Q20) -> 0 | R18: 0 | S18: 0 | T18: 0 | U18: 0 | V18: 0 | W18: 0 | X18: 0 | Y18: 0
J19: WPF/PM | K19: =SUM(N19:O19) -> 2064228 | L19: 0 | M19: 0 | N19: =SUM(L19:M19) -> 0 | O19: =SUM(P19:X19) -> 2064228 | P19: 2064228 | Q19: 0 | R19: 0 | S19: 0 | T19: 0 | U19: 0 | V19: 0 | W19: 0 | X19: 0 | Y19: 0
J20: WPF/UM | K20: =SUM(N20:O20) -> 3635772 | L20: 29889 | M20: 3365945 | N20: 3395834 | O20: =SUM(P20:X20) -> 239938 | P20: 239938 | Q20: =SUM(R20:AB20) -> 0 | R20: 0 | S20: 0 | T20: 0 | U20: 0 | V20: 0 | W20: 0 | X20: 0 | Y20: 0
A21: PROPONOWANA ZMIANA
A22: U.03.000 | B22: GMMW | C22: C/BIE/V/P1/141 | D22: Modernizacja budynku Szkoły Podstawowej nr 53 przy ul.Rudzkiej 6 | E22: 801 | F22: 80101 | G22: 6050 | H22: 2023 | I22: 2026 | J22: WPF, w tym: | K22: =SUM(N22:O22) -> 3949263 | L22: =SUM(L23:L24) -> 0 | M22: =SUM(M23:M24) -> 0 | N22: =SUM(L22:M22) -> 0 | O22: =SUM(P22:X22) -> 3949263 | P22: =SUM(P23:P24) -> 3199923 | Q22: 749340 | R22: 0 | S22: 0 | T22: 0 | U22: 0 | V22: 0 | W22: 0 | X22: 0 | Y22: 0
J23: WPF/PM: | K23: =SUM(N23:O23) -> 3949263 | L23: =L27-L19 -> 0 | M23: =M27-M19 -> 0 | N23: =SUM(L23:M23) -> 0 | O23: =SUM(P23:X23) -> 3949263 | P23: =P27-P19 -> 3199923 | Q23: 749340 | R23: 0 | S23: 0 | T23: 0 | U23: 0 | V23: 0 | W23: 0 | X23: 0 | Y23: 0
J24: WPF/UM: | K24: =SUM(N24:O24) -> 0 | L24: =L28-L20 -> 0 | M24: =M28-M20 -> 0 | N24: =SUM(L24:M24) -> 0 | O24: =SUM(P24:X24) -> 0 | P24: =P28-P20 -> 0 | Q24: 0 | R24: 0 | S24: 0 | T24: 0 | U24: 0 | V24: 0 | W24: 0 | X24: 0 | Y24: 0
A25: PO ZMIANIE
A26: U.03.000 | B26: GMMW | C26: C/BIE/V/P1/141 | D26: Modernizacja budynku Szkoły Podstawowej nr 53 przy ul.Rudzkiej 6 | E26: 801 | F26: 80101 | G26: 6050 | H26: 2023 | I26: 2026 | J26: WPF, w tym | K26: =SUM(N26:O26) -> 9649263 | L26: =SUM(L27:L28) -> 29889 | M26: =SUM(M27:M28) -> 3365945 | N26: =SUM(L26:M26) -> 3395834 | O26: =SUM(P26:X26) -> 6253429 | P26: =SUM(P27:P28) -> 5504089 | Q26: =SUM(Q27:Q28) -> 749340 | R26: =SUM(R27:R28) -> 0 | S26: 0 | T26: 0 | U26: 0 | V26: 0 | W26: 0 | X26: 0 | Y26: 0
J27: WPF/PM | K27: =SUM(N27:O27) -> 6013491 | L27: 0 | M27: 0 | N27: =SUM(L27:M27) -> 0 | O27: =SUM(P27:X27) -> 6013491 | P27: 5264151 | Q27: 749340 | R27: 0 | S27: 0 | T27: 0 | U27: 0 | V27: 0 | W27: 0 | X27: 0 | Y27: 0
J28: WPF/UM | K28: =SUM(N28:O28) -> 3635772 | L28: 29889 | M28: 3365945 | N28: =SUM(L28:M28) -> 3395834 | O28: =SUM(P28:X28) -> 239938 | P28: 239938 | Q28: 0 | R28: 0 | S28: 0 | T28: 0 | U28: 0 | V28: 0 | W28: 0 | X28: 0 | Y28: 0
A29: PRZED ZMIANĄ
A30: U.03.000 | B30: GMMW | C30: C/BIE/V/P1/142 | E30: 801 | F30: 80101 | G30: 6050 | H30: 2023 | I30: 2023 | J30: WPF, w tym | K30: =SUM(N30:O30) -> 0 | L30: =SUM(L31:L32) -> 0 | M30: =SUM(M31:M32) -> 0 | N30: =SUM(L30:M30) -> 0 | O30: =SUM(P30:X30) -> 0 | P30: =SUM(P31:P32) -> 0 | Q30: 0 | R30: 0 | S30: 0 | T30: 0 | U30: 0 | V30: 0 | W30: 0 | X30: 0 | Y30: 0
J31: WPF/PM | K31: =SUM(N31:O31) -> 0 | L31: 0 | M31: 0 | N31: =SUM(L31:M31) -> 0 | O31: =SUM(P31:X31) -> 0 | Q31: 0 | R31: 0 | S31: 0 | T31: 0 | U31: 0 | V31: 0 | W31: 0 | X31: 0 | Y31: 0
J32: WPF/UM | K32: =SUM(N32:O32) -> 0 | L32: 0 | M32: 0 | N32: =SUM(L32:M32) -> 0 | O32: =SUM(P32:X32) -> 0 | P32: =SUM(Q32:AA32) -> 0 | Q32: 0 | R32: 0 | S32: 0 | T32: 0 | U32: 0 | V32: 0 | W32: 0 | X32: 0 | Y32: 0
A33: PROPONOWANA ZMIANA
A34: U.03.000 | B34: GMMW | C34: C/BIE/V/P1/142 | E34: 801 | F34: 80101 | G34: 6050 | H34: 2023 | I34: 2024 | J34: WPF, w tym: | K34: =SUM(N34:O34) -> 0 | L34: =SUM(L35:L36) -> 0 | M34: =SUM(M35:M36) -> 0 | N34: =SUM(L34:M34) -> 0 | O34: =SUM(P34:X34) -> 0 | P34: =SUM(P35:P36) -> 0 | Q34: 0 | R34: 0 | S34: 0 | T34: 0 | U34: 0 | V34: 0 | W34: 0 | X34: 0 | Y34: 0
J35: WPF/PM: | K35: =SUM(N35:O35) -> 0 | L35: =L39-L31 -> 0 | M35: =M39-M31 -> 0 | N35: =SUM(L35:M35) -> 0 | O35: =SUM(P35:X35) -> 0 | P35: =P39-P31 -> 0 | Q35: 0 | R35: 0 | S35: 0 | T35: 0 | U35: 0 | V35: 0 | W35: 0 | X35: 0 | Y35: 0
J36: WPF/UM: | K36: =SUM(N36:O36) -> 0 | L36: =L40-L32 -> 0 | M36: =M40-M32 -> 0 | N36: =SUM(L36:M36) -> 0 | O36: =SUM(P36:X36) -> 0 | P36: =P40-P32 -> 0 | Q36: 0 | R36: 0 | S36: 0 | T36: 0 | U36: 0 | V36: 0 | W36: 0 | X36: 0 | Y36: 0
A37: PO ZMIANIE
A38: U.03.000 | B38: GMMW | C38: C/BIE/V/P1/142 | E38: 801 | F38: 80101 | G38: 6050 | H38: 2023 | I38: 2024 | J38: WPF, w tym | K38: =SUM(N38:O38) -> 0 | L38: =SUM(L39:L40) -> 0 | M38: =SUM(M39:M40) -> 0 | N38: =SUM(L38:M38) -> 0 | O38: =SUM(P38:X38) -> 0 | P38: =SUM(P39:P40) -> 0 | Q38: 0 | R38: 0 | S38: 0 | T38: 0 | U38: 0 | V38: 0 | W38: 0 | X38: 0 | Y38: 0
J39: WPF/PM | K39: =SUM(N39:O39) -> 0 | L39: 0 | M39: 0 | N39: =SUM(L39:M39) -> 0 | O39: =SUM(P39:X39) -> 0 | R39: 0 | S39: 0 | T39: 0 | U39: 0 | V39: 0 | W39: 0 | X39: 0 | Y39: 0
J40: WPF/UM | K40: =SUM(N40:O40) -> 0 | L40: 0 | M40: 0 | N40: =SUM(L40:M40) -> 0 | O40: =SUM(P40:X40) -> 0 | P40: 0 | Q40: 0 | R40: 0 | S40: 0 | T40: 0 | U40: 0 | V40: 0 | W40: 0 | X40: 0 | Y40: 0
A41: Bilans zmian | J41: WPF, w tym | K41: =SUMIF($J:$J,J34,K:K) -> 3949263 | L41: =SUMIF($J:$J,J34,L:L) -> 0 | M41: =SUMIF($J:$J,J34,M:M) -> 0 | N41: =SUMIF($J:$J,J34,N:N) -> 0 | O41: =SUMIF($J:$J,J34,O:O) -> 3949263 | P41: =SUMIF($J:$J,J34,P:P) -> 3199923 | Q41: =SUMIF($J:$J,J34,Q:Q) -> 749340 | R41: =SUMIF($J:$J,J34,R:R) -> 0 | S41: =SUMIF($J:$J,#REF!,S:S) -> 0 | T41: =SUMIF($J:$J,#REF!,T:T) -> 0 | U41: =SUMIF($J:$J,#REF!,U:U) -> 0 | V41: =SUMIF($J:$J,#REF!,V:V) -> 0 | W41: =SUMIF($J:$J,#REF!,W:W) -> 0 | X41: =SUMIF($J:$J,#REF!,X:X) -> 0 | Y41: =SUMIF($J:$J,#REF!,Y:Y) -> 0
J42: WPF/PM | K42: =SUMIF($J:$J,J35,K:K) -> 3949263 | L42: =SUMIF($J:$J,J35,L:L) -> 0 | M42: =SUMIF($J:$J,J35,M:M) -> 0 | N42: =SUMIF($J:$J,J35,N:N) -> 0 | O42: =SUMIF($J:$J,J35,O:O) -> 3949263 | P42: =SUMIF($J:$J,J35,P:P) -> 3199923 | Q42: =SUMIF($J:$J,J35,Q:Q) -> 749340 | R42: =SUMIF($J:$J,J35,R:R) -> 0 | S42: =SUMIF($J:$J,#REF!,S:S) -> 0 | T42: =SUMIF($J:$J,#REF!,T:T) -> 0 | U42: =SUMIF($J:$J,#REF!,U:U) -> 0 | V42: =SUMIF($J:$J,#REF!,V:V) -> 0 | W42: =SUMIF($J:$J,#REF!,W:W) -> 0 | X42: =SUMIF($J:$J,#REF!,X:X) -> 0 | Y42: =SUMIF($J:$J,#REF!,Y:Y) -> 0
J43: WPF/UM | K43: =SUMIF($J:$J,J36,K:K) -> 0 | L43: =SUMIF($J:$J,J36,L:L) -> 0 | M43: =SUMIF($J:$J,J36,M:M) -> 0 | N43: =SUMIF($J:$J,J36,N:N) -> 0 | O43: =SUMIF($J:$J,J36,O:O) -> 0 | P43: =SUMIF($J:$J,J36,P:P) -> 0 | Q43: =SUMIF($J:$J,J36,Q:Q) -> 0 | R43: =SUMIF($J:$J,#REF!,R:R) -> 0 | S43: =SUMIF($J:$J,#REF!,S:S) -> 0 | T43: =SUMIF($J:$J,#REF!,T:T) -> 0 | U43: =SUMIF($J:$J,#REF!,U:U) -> 0 | V43: =SUMIF($J:$J,#REF!,V:V) -> 0 | W43: =SUMIF($J:$J,#REF!,W:W) -> 0 | X43: =SUMIF($J:$J,#REF!,X:X) -> 0 | Y43: =SUMIF($J:$J,#REF!,Y:Y) -> 0
V46: Burmistrz
V47: Dzielnicy Bielany m.st. Warszawy
V49: Grzegorz Pietruczuk
